Cogmind - Beta 13 @@@ ROGUE MODE // 2024.05.19 @ 00:23:46 Player: Mimendra Result: Destroyed by as-17621 with Assembled Blade Performance ------------- Evolutions (1) 500 Regions Visited (4) 800 Robots Destroyed (21) 105 Value Destroyed (493) 493 Prototype IDs (2) 40 Alien Tech Used (0) 0 Bonus (-30) -30 TOTAL SCORE: 1908 Bonus ------- Friendly Fire -30 Cogmind --------- Core Integrity 0/400 Matter 353/400 Energy 300/300 System Corruption 0% Temperature Cool (0) Movement Flying (120) Ox1 Location -9/Mines Parts ------- > --- POWER (1) -------- (None) > --- PROPULSION (2) --- Flight Unit > --- UTILITY (3) ------ Large Battery Medium Matter Pod > --- WEAPON (3) ------- Katana > --- INVENTORY (5) ---- Flight Unit Flight Unit Small Matter Pod (0) Peak State ------------ > --- POWER ------------ Light Ion Engine > --- PROPULSION ------- Flight Unit Improved Flight Unit > --- UTILITY ---------- Heat Sink Large Battery Medium Matter Pod > --- WEAPON ----------- Light Assault Rifle Light Assault Rifle Katana > --- INVENTORY -------- Flight Unit Flight Unit Flight Unit [Rating: 13] Favorites ----------- Power Light Ion Engine Engine Light Ion Engine Propulsion Wheel Leg Aluminum Leg Wheel Wheel Flight Unit Flight Unit Utility Medium Matter Pod Device Heat Sink Storage Medium Matter Pod Weapon Light Assault Rifle Energy Gun Small Laser Ballistic Gun Light Assault Rifle Launcher Grenade Launcher Special Weapon Mining Laser Slashing Weapon Katana Build | -11 -10 -10 -9 -9 ------- Run | Yrd Mat Min Mat Min Slots Evolved 2 | . . . 2 . Power . | . . . . . Propulsion . | . . . . . Utility 1 | . . . 1 . Weapon 1 | . . . 1 . Parts Attached 30 | 5 3 1 19 2 Power 2 | 1 . . 1 . Engine 2 | 1 . . 1 . Core . | . . . . . Reactor . | . . . . . Propulsion 17 | 2 . 1 14 . Treads . | . . . . . Leg 2 | . . . 2 . Wheel 7 | 2 . 1 4 . Hover . | . . . . . Flight 8 | . . . 8 . Utility 4 | . 2 . 2 . Device 2 | . . . 2 . Storage 2 | . 2 . . . Processor . | . . . . . Hackware . | . . . . . Protection . | . . . . . Artifact . | . . . . . Weapon 7 | 2 1 . 2 2 Energy Gun 1 | 1 . . . . Energy Cannon . | . . . . . Ballistic Gun 2 | 1 . . 1 . Ballistic Cannon . | . . . . . Launcher 2 | . 1 . . 1 Special Weapon 1 | . . . . 1 Impact Weapon . | . . . . . Slashing Weapon 1 | . . . 1 . Piercing Weapon . | . . . . . Special Melee Weapon . | . . . . . Unidentified Prototypes 1 | . . . 1 . Parts Lost 11 | . . . 6 5 Power 2 | . . . 1 1 Propulsion 4 | . . . 3 1 Utility 2 | . . . 1 1 Weapon 3 | . . . 1 2 Highest Loss Streak 6 | . . . 6 5 To Critical Strikes . | . . . . . Average Slot Usage (%) 88 | . 82 100 79 96 Engine 11 | . 14 14 10 11 Wheel 13 | . 28 28 7 . Flight 8 | . . . 8 22 Device 6 | . . . 10 9 Storage 21 | . 10 28 22 22 Ballistic Gun 10 | . 14 14 13 . Launcher 7 | . 10 14 1 10 Special Weapon 2 | . . . . 8 Slashing Weapon 4 | . . . 5 11 Naked Turns . | . . . . . Heaviest Build 15 | 5 12 12 13 15 Greatest Support 20 | 20 20 20 20 8 Greatest Overweight (x) 4 | . . . 4 1 Average Overweight (x) . | . . . . 1 Largest Inventory Capacity 5 | 5 5 5 5 5 Average Capacity 5 | 5 5 5 5 5 Most Carried 5 | 5 5 4 5 4 Average Carried 2 | 2 2 2 2 3 Final Capacity 5 | 5 5 5 5 5 Final Carried 4 | 4 . 3 4 3 Class Distribution -------------------- 54% | Mutant 45% | Scavenger-Mutant Dominant Class ---------------- Mutant | -10/Materials Mutant | -10/Mines Scavenger-Mutant | -9/Materials Scavenger-Mutant | -9/Mines Resources | -11 -10 -10 -9 -9 ----------- Run | Yrd Mat Min Mat Min Matter Collected 707 | 252 29 74 352 . Remotely . | . . . . . Salvage Created 488 | 37 80 140 231 . Parts 29 | 1 8 8 12 . Haulers Intercepted . | . . . . . Recyclers Shooed . | . . . . . Parts Field Recycled . | . . . . . Retrieved Matter . | . . . . . Parts Self-Destructed . | . . . . . Prevented . | . . . . . Kills | -11 -10 -10 -9 -9 ------- Run | Yrd Mat Min Mat Min Combat Hostiles Destroyed 17 | 1 4 6 5 1 Guns 9 | 1 1 3 4 . AOE 8 | . 3 3 1 1 Classes Destroyed 8 | 1 4 . 2 1 Worker 2 | . 1 . 1 . Recycler 1 | . . . 1 . Operator 1 | . 1 . . . Watcher 1 | . 1 . . . Swarmer 7 | . 3 2 2 . Grunt 8 | 1 1 4 2 . Sentry 1 | . . . 1 . Assembled 1 | . . . . 1 Best Kill Streak 5 | 1 5 4 2 1 Combat Bots Only 3 | 1 3 3 2 1 Max Kills in Single Turn 2 | 1 2 2 1 1 Gunslinging . | . . . . . Exploded 2 | . 2 1 1 1 Melee . | . . . . . Uniques/NPCs Destroyed . | . . . . . Combat | -11 -10 -10 -9 -9 -------- Run | Yrd Mat Min Mat Min Hostile Shots Fired 74 | 2 8 10 47 7 Missed 20 | . 4 1 13 2 Damage Taken 1004 | 22 31 120 552 279 Core 490 | 12 11 48 270 149 Absorbed by Shields . | . . . . . Core Remaining (%) 83 | 95 . 71 . . Volleys Fired 46 | 2 9 7 25 3 Largest 2 | 2 2 2 2 1 Hottest 60 | 60 50 50 50 30 Shots Fired 69 | 4 13 14 35 3 Gun 53 | 4 9 7 33 . Cannon . | . . . . . Launcher 16 | . 4 7 2 3 Special . | . . . . . Kinetic 51 | 2 9 7 33 . Thermal 2 | 2 . . . . Explosive 16 | . 4 7 2 3 Electromagnetic . | . . . . . Robot Hit Streak 6 | 2 5 6 5 3 Robot Miss Streak 3 | 2 2 2 3 . Penetration Max . | . . . . . Secondary Targets . | . . . . . Shots Hit Robots 43 | 2 8 8 24 1 Core Hits 44 | 2 10 10 12 10 Critical Kills . | . . . . . Critical Parts Destroyed . | . . . . . Critical Strikes . | . . . . . Melee Attacks 3 | . . . 3 . Impact . | . . . . . Slashing 3 | . . . 3 . Piercing . | . . . . . Sneak Attacks 2 | . . . 2 . Combat Hostiles . | . . . . . Follow-up Attacks . | . . . . . Damage Inflicted 1368 | 21 346 348 493 160 Guns 260 | 21 47 44 148 . Cannons . | . . . . . Explosions 943 | . 299 304 180 160 Melee 164 | . . . 164 . Ramming 1 | . . . 1 . Kinetic 248 | 9 47 44 148 . Thermal 12 | 12 . . . . Explosive 943 | . 299 304 180 160 Electromagnetic . | . . . . . Impact . | . . . . . Slashing 164 | . . . 164 . Piercing . | . . . . . Highest Corruption . | . . . . . Average Corruption . | . . . . . Corruption Purged . | . . . . . Corruption Blocked . | . . . . . Overload Shots . | . . . . . Overflow Damage 117 | . 3 . 114 . Projectiles . | . . . . . Explosions 83 | . 3 . 80 . Melee 34 | . . . 34 . Knockbacks . | . . . . . Impact . | . . . . . Kinetic . | . . . . . Secondary . | . . . . . Self-Inflicted Damage 260 | . . . 234 26 Shots 4 | . . . 3 1 Rammed 1 | . . . 1 . Targets Rammed 1 | . . . 1 . Kicked . | . . . . . Crushed . | . . . . . Highest Temperature 37 | 32 10 37 12 . Average Temperature 14 | 20 7 18 6 . Received Heat Transfer 126 | 12 6 60 48 . Siege Activations . | . . . . . Robots Corrupted . | . . . . . Combat Hostiles . | . . . . . Parts Fried . | . . . . . Impact Corruptions . | . . . . . Robots Melted . | . . . . . Combat Hostiles . | . . . . . Parts Melted . | . . . . . Heat Transferred 25 | 25 . . . . Parts Sabotaged . | . . . . . Parts Stolen . | . . . . . Parts Stripped . | . . . . . Power Chain Reactions . | . . . . . Alert | -11 -10 -10 -9 -9 ------- Run | Yrd Mat Min Mat Min Peak Influence 328 | 20 180 262 328 135 Initial 127 | . 13 70 102 127 Average 165 | 2 97 219 216 126 Maximum Alert Level 1 | . . 1 1 . Low Security (%) 54 | 100 100 25 17 100 Level 1 45 | . . 74 82 . Level 2 . | . . . . . Level 3 . | . . . . . Level 4 . | . . . . . Level 5 . | . . . . . High Security . | . . . . . Max Security . | . . . . . Squads Dispatched 3 | . 1 . 2 . Investigation . | . . . . . Extermination . | . . . . . Reinforcement 3 | . 1 . 2 . Assault . | . . . . . Garrison . | . . . . . Intercept . | . . . . . Searches Triggered . | . . . . . Construction Impeded . | . . . . . Haulers Reinforced . | . . . . . Active Scanning Responses . | . . . . . Cargo Convoy Interrupts . | . . . . . Stealth | -11 -10 -10 -9 -9 --------- Run | Yrd Mat Min Mat Min Distress Signals 2 | . 1 . 1 . Communications Jammed . | . . . . . Distress Signals . | . . . . . Times Spotted 42 | 1 6 6 16 13 Peak Tracking Total 9 | 1 5 3 5 9 Tactical Retreats 1 | . . 1 . . Traps | -11 -10 -10 -9 -9 ------- Run | Yrd Mat Min Mat Min Traps Triggered . | . . . . . Indirectly . | . . . . . Trap Hack Attempts . | . . . . . Triggered . | . . . . . Disarmed . | . . . . . Reprogrammed . | . . . . . Reused . | . . . . . Traps Extracted . | . . . . . Installed . | . . . . . Triggered . | . . . . . Machines | -11 -10 -10 -9 -9 ---------- Run | Yrd Mat Min Mat Min Machines Disabled 4 | . 1 . 3 . Max in Single Turn 3 | . 1 . 3 . Machines Repaired . | . . . . . Machines Dismantled . | . . . . . Machines Sabotaged . | . . . . . Overloaded Fab Kills . | . . . . . Hacking | -11 -10 -10 -9 -9 --------- Run | Yrd Mat Min Mat Min Machines Accessed 5 | . 3 . 2 . Terminals 3 | . 2 . 1 . Fabricators . | . . . . . Repair Stations . | . . . . . Recycling Units 1 | . 1 . . . Scanalyzers 1 | . . . 1 . Garrison Access . | . . . . . Total Hacks 19 | . 12 . 7 . Successful 16 | . 11 . 5 . Failed 3 | . 1 . 2 . Catastrophic . | . . . . . Database Lockouts . | . . . . . Manual 1 | . 1 . . . Terminals 15 | . 11 . 4 . Fabricators . | . . . . . Repair Stations . | . . . . . Recycling Units 1 | . 1 . . . Scanalyzers 3 | . . . 3 . Garrison Access . | . . . . . Terminal Hacks 13 | . 10 . 3 . Record 4 | . 3 . 1 . Robot Analysis 1 | . 1 . . . Prototype ID Bank 1 | . . . 1 . Alert Level 1 | . 1 . . . Locate Traps 2 | . 1 . 1 . Dispatch Records 1 | . 1 . . . Hauler Manifests 1 | . 1 . . . Registered Components 1 | . 1 . . . Zone Layout 1 | . 1 . . . Fabricator Hacks . | . . . . . Repair Station Hacks . | . . . . . Recycling Unit Hacks 1 | . 1 . . . Recycle Component 1 | . 1 . . . Scanalyzer 2 | . . . 2 . Insert Component 1 | . . . 1 . Analyze 1 | . . . 1 . Garrison Access Hacks . | . . . . . Unauthorized Hacks . | . . . . . Terminals . | . . . . . Fabricators . | . . . . . Repair Stations . | . . . . . Recycling Units . | . . . . . Scanalyzers . | . . . . . Garrison Access . | . . . . . Data Cores Recovered 1 | . 1 . . . Used . | . . . . . Hacking Detections 4 | . 3 . 1 . Full Trace Events . | . . . . . Feedback Events . | . . . . . Feedback Blocked . | . . . . . Robot Schematics Acquired . | . . . . . Robots Built . | . . . . . Authchips . | . . . . . Time . | . . . . . Total Robot Build Rating . | . . . . . Part Schematics Acquired 1 | . . . 1 . Parts Built . | . . . . . Authchips . | . . . . . Time . | . . . . . Total Part Build Rating . | . . . . . Parts Repaired . | . . . . . Time . | . . . . . Parts Recycled 1 | . 1 . . . Recycled Matter . | . . . . . Retrieved Matter . | . . . . . Retrieved Components . | . . . . . Parts Scanalyzed 1 | . . . 1 . Part Schematics Acquired 1 | . . . 1 . Parts Damaged . | . . . . . Bothacking | -11 -10 -10 -9 -9 ------------ Run | Yrd Mat Min Mat Min Used RIF Installer . | . . . . . Robots Hacked . | . . . . . Non-combat . | . . . . . Combat . | . . . . . Robot Hacks Applied . | . . . . . Relay Couplers Released . | . . . . . Fabnet Peak Effective % . | . . . . . Robots Rewired . | . . . . . Allies Hacked . | . . . . . Hacks Repelled . | . . . . . Allies | -11 -10 -10 -9 -9 -------- Run | Yrd Mat Min Mat Min Total Allies . | . . . . . Largest Group . | . . . . . Highest-Rated Group . | . . . . . Highest-Rated Ally . | . . . . . Total Orders . | . . . . . Ally Attacks . | . . . . . Total Damage . | . . . . . Kills . | . . . . . Allies Corrupted . | . . . . . Allies Melted . | . . . . . Intel | -11 -10 -10 -9 -9 ------- Run | Yrd Mat Min Mat Min Robot Analysis Total 1 | . 1 . . . Derelict Logs Recovered 3 | . . 2 . 1 Drone Launches . | . . . . . Drone Recoveries . | . . . . . Exploration | -11 -10 -10 -9 -9 ------------- Run | Yrd Mat Min Mat Min Turns Passed 946 | 68 126 206 331 215 Spaces Moved 690 | 69 119 224 190 88 Core 26 | 21 . . 5 . Treads . | . . . . . Legs 19 | . . . 19 . Wheels 490 | 48 119 224 99 . Hover . | . . . . . Flight 155 | . . . 67 88 Fastest Speed 50 | 50 80 80 80 117 Average Speed 92 | 70 80 80 111 117 Slowest Speed 280 | 80 80 80 280 120 Overloaded Moves . | . . . . . Propulsion Burnouts . | . . . . . Robots Hopped . | . . . . . Cave-ins Triggered . | . . . . . Exploration Rate (%) 32 | 5 31 73 23 32 Regions Visited 4 Branch Regions 2 Pre-discovered Areas 2 | . . 1 . 1 Known Exits Taken . | . . . . . Unknown Exits Taken 4 | 1 1 1 1 . Scrap Searched . | . . . . . Spaces Dug 7 | . . . . 7 Terrain Destroyed 139 | . 12 47 59 21 Melee . | . . . . . Projectile . | . . . . . AOE 139 | . 12 47 59 21 Terrain Rammed . | . . . . . Walls Destroyed . | . . . . . Machines Disabled . | . . . . . Actions | -11 -10 -10 -9 -9 --------- Run | Yrd Mat Min Mat Min Total 950 | 84 141 239 288 198 Wait 102 | . . . 2 100 Move 686 | 68 118 223 189 88 Hop . | . . . . . Pick Up 47 | 9 5 5 25 3 Fast Attach . | . . . . . Attach 30 | 5 3 1 19 2 Detach 7 | . . 1 6 . Swap . | . . . . . Drop 28 | . 6 2 18 2 Fire 46 | 2 9 7 25 3 Melee 3 | . . . 3 . Ram 1 | . . . 1 . Kick . | . . . . . Crush . | . . . . . Escape Stasis . | . . . . . Rewire . | . . . . . Trap . | . . . . . Miscellaneous . | . . . . . Route ------- -11/Scrapyard -10/Materials -10/Mines -9/Materials -9/Mines (discovered 1 exit: [*Zio]) History --------- Turn | Location | Event 2 | -11/Scrapyard | Met Revision 17 52 | -11/Scrapyard | Discovered new exit (range 8) 69 | -11/Scrapyard | Entered Materials 166 | -10/Materials | Discovered new exit (range 8) 195 | -10/Materials | Entered Mines 215 | -10/Mines | Met a Derelict bent on vengeance 322 | -10/Mines | Learned Materials emergency access door positions 330 | -10/Mines | Build established: Mutant 367 | -10/Mines | Learned Materials trap positions 394 | -10/Mines | Discovered new exit (range 9) 395 | -10/Mines | Learned location of Storage (-9) 401 | -10/Mines | Entered Materials 401 | -9/Materials | Evolved 2 slots: Utility x1, Weapon x1 402 | -9/Materials | Loaded intel: 10 trap records 443 | -9/Materials | Core integrity fell below 50% 531 | -9/Materials | Lost 6 parts (1p3n1u1w) 716 | -9/Materials | Discovered new exit (range 12) 732 | -9/Materials | Entered Mines 733 | -9/Mines | A Derelict revealed a hidden shortcut to a safe place 745 | -9/Mines | YI-UF0 nonchalantly dropped a Grenade Launcher on the ground 816 | -9/Mines | Build established: Scavenger-Mutant 917 | -9/Mines | Assembled infested the area 919 | -9/Mines | Learned location of Zion (-7) 944 | -9/Mines | Core integrity fell below 20% 947 | -9/Mines | Destroyed by as-17621 with Assembled Blade Last Messages --------------- as-80497 destroyed. as-46792 destroyed. as-19685 destroyed. The unstable cave ceiling collapses. as-12698 destroyed. as-81775 destroyed. as-81365 destroyed. YI-UF0: "KAPOW!" D-53 Grenadier destroyed. Grenade Launcher destroyed. K-01 Serf destroyed. The unstable cave ceiling collapses. Mining Laser destroyed. Flight Unit destroyed. Lgt. Ion Engine destroyed. as-93955 destroyed. YI-UF0: "BADABOOM!" D-53 Grenadier destroyed. The unstable cave ceiling collapses. [Achievement: First Step to Greatness] Map ----- +----------------------------------------------------+ | ??????????????????????????? ####??????????? | | ?????????????????????????????# ##?????????? | | ??????????????????????????????# #?????????? | | ???????????????????????????????# ########??# | | ????????????????????????????????# #??# | | ????????????????????????????????# ## ####### #??# | | ?????????????????????????????#### ## #?????# #?## | | ?????????????????????? #?????# ### | | ?????????????????????????????####### #?????# | | ???????????????????????????????##### #?????#### | | ???????????????????????????##### #????????# | | ???????????????????????????? ## #????????## | | ????????????????????????????# ## #####?????????## | | ??????????????????##??????### ## #??????????????# | | ??????????????????? ??????# #??????????????? | | ???????????????????# ?????# u######??????????????? | | ???????????????????# ###?## #???????????????????? | | ???????????????????# ##k ##???????????????????? | | ???????????????????# #???????????????????? | | ???????????????????### ######???????######## | | ?????????????????????# ##??????# | | ?????????????????????## ##?????# ###### | | ?????????????????????# #????????????? | | ?????????????????# ### ##???????????? | | ?????????????????# ##??????????? | | ??????????# @g #??????????? | | ??????????# a #?????????? | | ??????????# # ## ????? | | ??????????? ##? #??? | | ???????????# % ###?? ??? | | ????????????? #???? ???? | | ????????????? #????? ???? | | ???????????? ####????? ???? | | ????????????? ## # ?????????# ????? | | ????????????? ??##### #??????????# ????? | | ?????????????? ???????# ????????????###### ?????? | | ?????????????????????? ??????????????????? ?????? | | ?????????????????????% !?????????????????????????? | | ?????????????????????##%?????????????????????????? | | ??????????????????????#??????????????????????????? | | ?????????????????????????????????????????????????? | | ?????????????????????????????????????????????????? | | ?????????????????????????????????????????????????? | | ?????????????????????????????????????????????????? | | ?????????????????????????????????????????????????? | | ?????????????????????????????????????????????????? | | ?????????????????????????????????????????????????? | | ?????????????????????????????????????????????????? | | ?????????????????????????????????????????????????? | | ?????????????????????????????????????????????????? | +----------------------------------------------------+ Best States ------------- Heat Dissipation 38 Energy Generation 10 Energy Capacity 325 Matter Stores 378 Matter Capacity 400 Sight Range 16 Terrain Scan Range 14 Terrain Scan Density 10 Evasion (%) 50 Item Schematics ----------------- Flight Unit | -9/Materials | Scanalyzed Robot Schematics ------------------ None Fabricated ------------ Nothing Alien Tech Used ----------------- None Achievements -------------- First Step to Greatness Risk Taker Shopping List Uninvited Guest Challenges ------------ None Game ------ Seed HackingVortexFlail Manual? 0 Play Time 00:40:30 Cumulative 0.6 hours Start 2024.05.18 @ 22:35:23 End 2024.05.19 @ 00:23:46 Sessions 3 Manual Loads 0 Difficulty Rogue Special Mode None Game No. 1 Rogue 1 Adventurer 0 Explorer 0 Win Type - Total 0 Types 0/0/0/0/0/0/0/0/0 Lore% 0 Gallery% 1 Achievement% 1 Wizard Run 0 Options --------- Layout 1 ASCII 0 Keyboard 1 Movement Numpad Keybinds 0 Fullscreen 2 Font 24/Smallcaps Map View 50x35 Zoom Use 0% Tactical HUD 0 Map Filters NONE Filters NONE Steam 1 RUN: 4cab5f0a-c6aa-455e-86ab-d27a51ed4d3e